bitfinex/quotes_SOLUSD_20250912
["timestamp","ask_amount","ask_price","bid_price","bid_amount"]
[1757680687590,0.16,238.09,238.08,154.54089412]
[1757680687801,0.16,238.09,238.08,186.38089412]
[1757680688007,0.16,238.09,238.08,187.08089412]
[1757680688381,0.16,238.09,238.08,186.38089412]
[1757680688586,0.16,238.09,238.08,186.23873255]
[1757680689189,0.16,238.09,238.08,153.69873255]
[1757680689403,0.83,238.09,238.08,186.23873255]
[1757680689605,0.16,238.09,238.08,186.23873255]
[1757680690102,0.16,238.09,238.08,54.83873255]
[1757680690300,0.83,238.09,238.08,1.67873256]
[1757680690502,0.16,238.09,238.08,32.54]
[1757680691600,0.83,238.09,238.06,1.67887348]
[1757680691808,0.67,238.08,238.04,50.82999999]
[1757680691988,0.16,238.09,238.05,32.54]
[1757680691989,0.67,238.07,238.05,32.54]
[1757680692183,0.67,238.06,238.05,32.54]
[1757680692985,0.16,238.09,238.08,26.0]
[1757680693186,0.16,238.09,238.08,58.54]
[1757680694088,0.16,238.09,238.08,59.24]
[1757680694289,0.16,238.09,238.08,58.54]
[1757680697889,0.16,238.09,238.08,59.24]
[1757680698109,0.03132151,238.09,238.08,59.24]
[1757680699001,0.03132151,238.09,238.08,58.54]
[1757680699192,0.70132151,238.09,238.08,58.54]
[1757680699503,0.03132151,238.09,238.08,58.54]
[1757680699689,0.03132151,238.09,238.05,20.61999999]
[1757680699896,0.03132151,238.09,238.08,26.0]
[1757680700212,0.03132151,238.09,238.08,58.54]
[1757680700408,0.03132151,238.09,238.04,30.21]
[1757680700603,0.03132151,238.09,238.05,32.54]
[1757680700790,0.03132151,238.09,238.08,26.0]
[1757680701110,0.03132151,238.09,238.08,32.54]
[1757680701290,0.70132151,238.09,238.08,32.54]
[1757680701692,0.03132151,238.09,238.08,32.54]
[1757680704591,0.03132151,238.09,238.08,53.15999999]
[1757680704900,0.03132151,238.09,238.08,53.88999999]
[1757680705110,0.03132151,238.09,238.08,55.5686621]
[1757680707920,0.03132151,238.09,238.08,55.4686621]
[1757680708122,0.03132151,238.09,238.08,55.88868898]
[1757680708418,0.03132151,238.09,238.08,56.03085055]
[1757680709803,0.03132151,238.09,238.08,55.61082367]
[1757680710204,0.03132151,238.09,238.08,56.03085055]
[1757680711330,0.00542992,238.09,238.08,89.62644456]
[1757680711523,0.05890116,238.12,238.11,26.14216157]
[1757680711733,0.05890116,238.12,238.11,99.62213552]
[1757680711900,0.05890116,238.12,238.11,79.20216156]
[1757680712236,0.05890116,238.12,238.11,101.5904715]
[1757680712399,0.05890116,238.12,238.11,81.5904715]
[1757680712926,0.05890116,238.12,238.11,101.5904715]
[1757680713626,0.05890116,238.12,238.11,115.18606551]
[1757680715208,0.1,238.19,238.13,20.46109883]
[1757680715527,0.1,238.19,238.18,0.14216157]
[1757680715712,0.1,238.19,238.18,33.39216157]
[1757680716621,0.1,238.19,238.18,0.85216157]
[1757680716833,0.1,238.19,238.18,35.06997873]
[1757680717412,0.81,238.19,238.18,1.67781716]
[1757680717598,0.81,238.19,238.18,34.21781716]
[1757680717799,0.81,238.19,238.18,1.67781716]
[1757680718030,0.81,238.19,238.18,32.54]
[1757680718533,0.1,238.19,238.18,32.54]
[1757680719934,0.81,238.19,238.18,26.0]
[1757680720113,0.81,238.19,238.18,58.54]
[1757680720509,0.81,238.19,238.18,32.54]
[1757680721930,0.81,238.19,238.14,12.58785272]
[1757680722110,0.1,238.19,238.18,26.0]
[1757680722425,0.1,238.19,238.18,58.54]
[1757680722645,0.81,238.19,238.18,58.54]
[1757680722829,0.81,238.19,238.18,79.00109883]
[1757680723196,0.81,238.19,238.18,46.46109883]
[1757680723522,0.81,238.19,238.18,79.00109883]
[1757680727213,0.81,238.19,238.18,46.46109883]
[1757680727416,0.81,238.19,238.18,79.00109883]
[1757680727615,0.81,238.19,238.18,32.54]
[1757680729110,0.81,238.19,238.15,26.0]
[1757680729316,0.71,238.18,238.16,32.54]
[1757680729646,0.1,238.19,238.17,32.54]
[1757680730168,0.71,238.18,238.17,32.54]
[1757680730635,0.71,238.18,238.15,47.1]
[1757680730938,0.1,238.19,238.18,26.0]
[1757680731132,0.1,238.19,238.18,58.54]
[1757680734741,0.1,238.19,238.18,79.64]
[1757680736937,0.1,238.19,238.18,58.54]
[1757680737245,0.1,238.19,238.18,59.24]
[1757680737658,0.1,238.19,238.18,58.54]
[1757680738047,0.1,238.19,238.18,59.24]
[1757680738254,0.1,238.19,238.18,60.91809871]
[1757680738641,0.1,238.19,238.18,82.01809871]
[1757680739237,0.1,238.19,238.18,81.31809871]
[1757680740860,0.1,238.19,238.18,48.77809871]
[1757680741167,0.1,238.19,238.18,79.62]
[1757680741333,0.1,238.19,238.18,47.1]
[1757680741661,0.81,238.19,238.18,32.52]
[1757680744334,14.40559401,238.19,238.18,32.52]
[1757680746433,0.1,238.19,238.18,32.52]
[1757680746649,0.1,238.19,238.18,58.52]
[1757680747852,0.1,238.19,238.18,59.22]
[1757680748352,0.1,238.19,238.18,58.52]
[1757680748565,0.1,238.19,238.18,33.22]
[1757680749783,0.1,238.19,238.18,54.32]
[1757680751082,0.81,238.29,238.21,26.0]
[1757680751395,0.81,238.29,238.25,26.0]
[1757680751597,0.81,238.29,238.26,32.52]
[1757680751766,0.71,238.28,238.26,32.52]
[1757680752170,0.1,238.29,238.26,33.22]
[1757680752388,0.1,238.29,238.26,32.52]
[1757680752575,0.1,238.29,238.27,0.7]
[1757680752891,0.1,238.29,238.28,32.52]
[1757680756086,0.1,238.29,238.28,54.32]
[1757680759771,0.1,238.29,238.28,33.22]
[1757680760671,0.1,238.29,238.28,0.7]
[1757680760873,0.1,238.29,238.28,33.22]
[1757680761080,0.1,238.29,238.28,0.7]
[1757680761393,0.1,238.29,238.28,32.52]
[1757680761997,0.16,238.29,238.28,32.52]
[1757680767679,0.16,238.29,238.28,33.21]
[1757680770307,0.16,238.29,238.28,54.31]
[1757680770498,0.16,238.29,238.28,55.987395]
[1757680773398,0.16,238.29,238.28,23.467395]
[1757680773612,0.16,238.29,238.28,55.967395]
[1757680774886,0.16,238.29,238.28,23.467395]
[1757680775317,0.16,238.29,238.28,55.967395]
[1757680776814,0.16,238.3,238.28,55.967395]
[1757680777117,0.16,238.3,238.29,0.69]
[1757680777491,0.16,238.3,238.29,2.36725434]
[1757680780290,0.16,238.3,238.29,1.67725434]
[1757680780513,0.16,238.3,238.29,34.17725434]
[1757680780928,0.16,238.3,238.29,1.67725434]
[1757680781211,0.16,238.3,238.29,34.17725434]
[1757680781999,0.16,238.3,238.29,55.27725434]
[1757680782297,0.16,238.3,238.29,22.77725434]
[1757680782492,0.22,238.3,238.29,55.27725434]
[1757680782804,0.22,238.3,238.29,22.77725434]
[1757680783126,0.22,238.3,238.29,55.27725434]
[1757680784815,0.22,238.3,238.29,55.96725434]
[1757680787017,0.22,238.3,238.29,55.27725434]
[1757680789616,0.22,238.3,238.29,55.96725434]
[1757680789930,0.22,238.3,238.29,55.27725434]
[1757680792043,0.22,238.3,238.29,55.96725434]
[1757680794245,0.22,238.3,238.29,55.27725434]
[1757680795632,0.9,238.3,238.29,55.27725434]
[1757680795820,0.14216157,238.41,238.32,26.0]
[1757680796021,1.36235366,238.4,238.33,32.5]
[1757680796251,0.14216157,238.41,238.33,32.5]
[1757680796448,1.36266525,238.4,238.33,32.5]
[1757680796629,1.36266525,238.39,238.33,32.5]
[1757680796831,0.14216157,238.41,238.33,32.5]
[1757680797152,1.36255745,238.4,238.33,32.5]
[1757680797333,1.36255745,238.39,238.33,32.5]
[1757680797649,0.14216157,238.41,238.33,32.5]
[1757680797848,1.36287226,238.4,238.33,32.5]
[1757680798022,13.59559401,238.38,238.33,32.5]
[1757680798422,0.14216157,238.41,238.33,32.5]
[1757680798643,13.59559401,238.39,238.33,32.5]
[1757680799035,0.14216157,238.41,238.33,32.5]
[1757680799223,13.59559401,238.39,238.33,32.5]
[1757680800254,1.36415621,238.38,238.33,32.5]
[1757680800451,13.59559401,238.39,238.33,32.5]
[1757680800764,1.36417352,238.38,238.33,32.5]
[1757680800932,13.59559401,238.39,238.33,32.5]
[1757680801133,1.36417354,238.38,238.33,32.5]
[1757680801333,13.59559401,238.4,238.33,32.5]
[1757680801536,1.36420281,238.39,238.33,32.5]
[1757680801735,13.59559401,238.4,238.33,32.5]
[1757680801941,0.14216157,238.42,238.33,32.5]
[1757680802154,13.65559401,238.4,238.33,32.5]
[1757680802441,1.36451142,238.39,238.33,32.5]
[1757680802662,13.65559401,238.4,238.33,32.5]
[1757680802866,1.36450277,238.39,238.33,32.5]
[1757680803166,0.06,238.4,238.33,32.5]
[1757680803372,0.06,238.4,238.36,26.0]
[1757680803545,0.06,238.4,238.37,32.48]
[1757680804161,0.06,238.4,238.39,26.0]
[1757680804366,0.06,238.4,238.36,21.1]
[1757680804565,1.36450295,238.39,238.37,32.48]
[1757680804748,1.36439744,238.38,238.37,32.48]
[1757680805058,0.06,238.4,238.37,32.48]
[1757680805365,1.36455617,238.39,238.37,32.48]
[1757680805657,0.06,238.4,238.37,32.48]
[1757680805860,1.36455874,238.39,238.37,32.48]
[1757680806044,0.06,238.4,238.37,32.48]
[1757680808769,1.04761746,238.39,238.38,32.48]
[1757680809059,1.04761746,238.39,238.33,47.1]
[1757680809060,13.59559401,238.38,238.33,47.1]
[1757680809365,13.59559401,238.38,238.34,32.48]
[1757680809572,0.06,238.4,238.34,32.48]
[1757680809864,13.59559401,238.38,238.32,26.0]
[1757680810167,1.04771913,238.37,238.33,32.48]
[1757680810366,0.06,238.4,238.33,32.48]
[1757680810667,13.59559401,238.38,238.33,32.48]
[1757680810842,1.04769399,238.37,238.33,32.48]
[1757680811044,13.59559401,238.38,238.33,32.48]
[1757680811258,1.04771936,238.37,238.33,32.48]
[1757680811463,13.59559401,238.38,238.33,32.48]
[1757680811763,1.04771941,238.37,238.33,32.48]
[1757680811950,13.59559401,238.38,238.33,32.48]
[1757680812154,1.04771935,238.37,238.33,32.48]
[1757680812354,1.04771935,238.36,238.33,32.48]
[1757680812553,13.59559401,238.38,238.33,32.48]
[1757680812871,1.04771223,238.37,238.34,0.67]
[1757680813065,13.59559401,238.38,238.34,0.67]
[1757680813368,1.04771194,238.37,238.34,0.67]
[1757680813569,0.06,238.4,238.34,0.67]
[1757680813772,1.0475961,238.39,238.34,0.67]
[1757680814068,13.65559401,238.4,238.34,0.67]
[1757680814267,1.04759593,238.39,238.34,0.67]
[1757680814472,0.06,238.4,238.34,0.67]
[1757680814674,1.04759593,238.39,238.34,0.67]
[1757680814868,0.06,238.4,238.34,0.67]
[1757680815051,1.04759592,238.39,238.34,0.67]
[1757680815253,0.06,238.4,238.34,0.67]
[1757680815568,1.04759592,238.39,238.34,0.67]
[1757680815771,0.06,238.4,238.34,0.67]
[1757680815963,1.04759592,238.39,238.34,0.67]
[1757680816147,1.04759598,238.38,238.34,0.67]
[1757680816346,0.06,238.4,238.34,0.67]
[1757680816543,1.04762505,238.39,238.34,0.67]
[1757680816766,1.04762505,238.39,238.35,32.48]
[1757680816767,13.59559401,238.37,238.35,32.48]
[1757680816967,1.04762505,238.36,238.35,32.48]
[1757680819251,14.64321906,238.36,238.35,32.48]
[1757680820061,14.64321906,238.36,238.32,26.0]
[1757680820261,14.64321906,238.36,238.3,26.0]
[1757680820262,15.94272866,238.33,238.3,32.48]
[1757680820555,13.59559401,238.31,238.3,32.48]
[1757680820755,14.64321906,238.31,238.3,32.48]
[1757680821574,14.78538063,238.31,238.3,32.48]
[1757680821758,18.18589418,238.31,238.3,32.48]
[1757680822156,20.39086726,238.31,238.3,32.48]
[1757680822362,17.58035371,238.31,238.3,32.51]
[1757680823265,17.58035371,238.31,238.3,0.03]
[1757680823666,20.39086726,238.31,238.3,0.03]
[1757680823863,24.58708227,238.31,238.3,0.03]
[1757680824054,21.77656872,238.31,238.3,0.03]
[1757680825477,24.58708227,238.31,238.3,0.03]
[1757680825656,0.14216157,238.3,238.29,0.03]
[1757680825859,23.99725836,238.3,238.29,0.03]
[1757680826078,20.39086726,238.3,238.29,0.03]
[1757680826275,21.77674481,238.3,238.29,0.03]
[1757680826969,24.58725836,238.3,238.29,0.03]
[1757680830982,23.38281596,238.3,238.29,0.03]
[1757680831382,32.20270828,238.3,238.29,0.03]
[1757680831688,44.79425935,238.3,238.29,0.03]
[1757680832181,44.79425935,238.3,238.26,0.03]
[1757680832182,26.0,238.27,238.26,0.03]
[1757680832486,26.0,238.22,238.21,0.1]
[1757680832861,28.20497308,238.22,238.21,0.1]
[1757680833065,15.94272866,238.22,238.21,0.1]
[1757680833264,13.73775558,238.22,238.21,0.1]
[1757680833879,13.59559401,238.22,238.21,0.77]
[1757680836191,13.59559401,238.22,238.21,33.27]
[1757680836579,13.59559401,238.28,238.21,33.27]
[1757680836888,13.59559401,238.28,238.22,0.67]
[1757680836889,0.14216157,238.27,238.22,0.67]
[1757680837973,2.79497308,238.32,238.22,0.67]
[1757680837974,15.80056709,238.35,238.22,0.67]
[1757680838169,39.59559401,238.32,238.22,0.67]
[1757680838785,0.14216157,238.31,238.22,0.67]
[1757680841305,39.73775558,238.29,238.23,32.5]
[1757680841473,41.94272866,238.29,238.24,0.67]
[1757680841679,41.94272866,238.29,238.25,0.67]
[1757680843096,13.73775558,238.29,238.26,0.67]
[1757680843267,13.73775558,238.29,238.23,32.5]
[1757680843268,13.73775558,238.29,238.27,0.67]
[1757680843473,0.14216157,238.29,238.27,0.67]
[1757680843685,0.14216157,238.29,238.28,0.67]
[1757680844998,0.20216157,238.31,238.28,0.67]
[1757680845185,0.20216157,238.31,238.26,0.67]
[1757680845802,0.14216157,238.29,238.26,0.67]
[1757680846302,0.14216157,238.27,238.23,0.67]
[1757680846504,0.14216157,238.27,238.24,33.17]
[1757680846798,0.14216157,238.27,238.25,0.67]
[1757680846990,0.14216157,238.27,238.26,0.67]
[1757680847492,1.04818582,238.3,238.26,0.67]
[1757680847700,0.14216157,238.29,238.27,0.67]
[1757680847997,0.14216157,238.29,238.28,0.67]
[1757680849796,0.14216157,238.29,238.24,32.5]
[1757680850001,13.73775558,238.29,238.26,0.67]
[1757680850198,13.73775558,238.29,238.27,0.67]
[1757680850502,0.14216157,238.3,238.27,0.67]
[1757680850812,0.14216157,238.28,238.27,0.67]
[1757680851506,0.14216157,238.28,238.25,32.5]
[1757680852210,0.14216157,238.28,238.25,33.17]
[1757680852894,0.14216157,238.28,238.25,32.5]
[1757680853094,0.14216157,238.28,238.23,32.5]
[1757680853095,0.14216157,238.26,238.23,32.5]
[1757680853488,13.59559401,238.25,238.23,32.5]
[1757680853813,13.73775558,238.23,238.22,0.03]
[1757680854106,0.14216157,238.23,238.22,0.03]
[1757680855599,13.73775558,238.27,238.22,0.72]
[1757680855906,0.14216157,238.25,238.22,0.72]
[1757680856109,0.14216157,238.25,238.23,0.69]
[1757680856513,13.73775558,238.25,238.24,0.69]
[1757680856685,13.59559401,238.25,238.24,0.69]
[1757680856882,0.06,238.31,238.24,0.69]
[1757680857085,13.59559401,238.29,238.24,0.69]
[1757680857296,0.06,238.31,238.24,0.69]
[1757680858323,13.59559401,238.29,238.24,0.69]
[1757680858616,0.06,238.31,238.24,0.69]
[1757680859701,0.06,238.31,238.25,26.0]
[1757680859891,0.06,238.31,238.26,33.17]
[1757680860093,1.04805274,238.3,238.26,33.17]
[1757680860293,0.06,238.31,238.27,0.69]
[1757680860513,1.04804892,238.3,238.27,0.69]
[1757680860724,0.06,238.31,238.27,0.69]
[1757680861395,0.06,238.31,238.23,47.1]
[1757680861396,13.59559401,238.29,238.28,33.17]
[1757680861821,0.06,238.31,238.28,33.17]
[1757680861997,0.06,238.31,238.29,0.69]
[1757680862320,1.04801982,238.3,238.29,0.69]
[1757680863399,0.06,238.31,238.29,0.69]
[1757680863600,0.06,238.31,238.3,0.69]
[1757680864015,1.10792562,238.31,238.3,0.69]
[1757680864314,1.10792562,238.31,238.3,33.17]
[1757680864511,1.10792562,238.31,238.3,32.48]
[1757680864704,0.06,238.31,238.3,33.17]
[1757680865505,0.06,238.31,238.3,32.48]
[1757680868515,0.06,238.31,238.24,21.13]
[1757680868693,0.14216157,238.28,238.24,0.03]
[1757680868897,13.73775558,238.26,238.25,32.48]
[1757680869090,3.44971796,238.3,238.25,33.17]
[1757680869290,13.59559401,238.28,238.26,0.69]
[1757680869491,0.14216157,238.3,238.27,0.69]
[1757680869807,1.04818734,238.29,238.27,0.69]
[1757680870118,1.04818734,238.28,238.25,32.48]
[1757680870414,0.20216157,238.31,238.19,20.79]
[1757680870589,13.73775558,238.29,238.19,20.59]
[1757680870795,1.04817318,238.28,238.2,0.69]
[1757680870996,0.14216157,238.29,238.2,0.69]
[1757680871205,1.04818075,238.28,238.2,0.69]
[1757680871419,0.14216157,238.29,238.22,26.0]
[1757680871616,1.04818075,238.28,238.23,33.17]
[1757680871814,0.14216157,238.29,238.24,0.69]
[1757680872601,0.14216157,238.29,238.23,32.48]
[1757680872602,13.59559401,238.27,238.25,0.69]
[1757680873032,0.14216157,238.29,238.25,0.69]
[1757680873323,13.59559401,238.27,238.26,0.69]
[1757680873627,0.20216157,238.31,238.26,0.69]
[1757680873822,13.73775558,238.29,238.23,32.48]
[1757680874013,13.59559401,238.27,238.24,0.69]
[1757680874324,0.14216157,238.29,238.25,0.69]
[1757680874520,13.59559401,238.27,238.22,21.28]
[1757680874741,13.59559401,238.28,238.26,32.48]
[1757680875027,1.04818094,238.27,238.26,32.48]
[1757680875544,14.64377495,238.27,238.26,32.48]
[1757680876104,14.64377495,238.27,238.26,33.17]
[1757680876745,13.59559401,238.27,238.26,33.17]
[1757680879226,13.59559401,238.27,238.26,33.17]
[1757680879926,13.59559401,238.27,238.26,33.2]
[1757680880306,13.59559401,238.27,238.26,32.51]
[1757680880626,14.64373841,238.27,238.26,0.03]
[1757680880835,14.64375661,238.27,238.26,33.2]
[1757680882823,13.59559401,238.27,238.26,33.2]
[1757680883213,13.59559401,238.27,238.26,34.19739431]
[1757680888036,14.64372402,238.27,238.26,34.19739431]
[1757680888325,14.64372402,238.27,238.26,33.50739431]
[1757680889517,14.64372402,238.27,238.26,34.18739431]
[1757680890135,13.59559401,238.27,238.26,34.18739431]
[1757680892209,14.64373122,238.27,238.26,34.18739431]
[1757680892426,13.59559401,238.27,238.26,34.18739431]
[1757680893213,0.06,238.29,238.26,34.18739431]
[1757680893412,14.64372402,238.28,238.27,0.68]
[1757680894647,1.04813001,238.28,238.27,0.68]
[1757680896748,0.06,238.29,238.27,0.68]
[1757680897245,0.06,238.29,238.27,21.27]
[1757680897633,0.06,238.29,238.28,0.68]
[1757680900741,0.06,238.29,238.28,21.27]
[1757680901050,0.06,238.29,238.28,53.75]
[1757680911264,0.06,238.29,238.28,53.73]
[1757680915441,0.06,238.29,238.28,21.27]
[1757680915655,0.06,238.29,238.28,53.73]
[1757680920051,0.65,238.29,238.28,26.0]
[1757680920362,14.24559401,238.29,238.28,32.46]
[1757680920543,15.29365747,238.29,238.28,32.46]
[1757680920744,13.59559401,238.28,238.26,1.02739431]
[1757680920953,16.99124666,238.27,238.26,0.43739431]
[1757680921160,14.78581904,238.27,238.26,0.43739431]
[1757680921754,14.64365747,238.27,238.26,0.43739431]
[1757680926875,14.64378926,238.27,238.26,0.43739431]
[1757680927169,13.59559401,238.27,238.26,0.43739431]
[1757680928569,14.64378201,238.27,238.26,0.43739431]
[1757680928774,14.64378201,238.27,238.26,32.89739431]
[1757680928966,18.98286304,238.27,238.26,0.43739431]
[1757680929569,14.78594358,238.27,238.26,0.43739431]
[1757680930552,14.64378201,238.27,238.26,32.89739431]
[1757680930974,13.59559401,238.27,238.26,32.89739431]
[1757680931352,14.64378922,238.27,238.26,32.89739431]
[1757680932449,0.06,238.29,238.26,33.61739431]
[1757680932654,1.04810914,238.28,238.27,0.72]
[1757680933177,1.04810817,238.28,238.27,0.72]
[1757680933369,1.04810817,238.28,238.27,32.46]
[1757680934566,13.59559401,238.27,238.26,0.43739431]
[1757680934766,13.59559401,238.27,238.26,32.92739431]
[1757680934980,0.06,238.28,238.26,32.92739431]
[1757680938376,0.06,238.28,238.26,33.64739431]
[1757680938576,0.06,238.28,238.27,0.72]
[1757680938773,13.59559401,238.27,238.26,33.64739431]
[1757680939680,0.06,238.28,238.26,33.64739431]
[1757680939979,0.06,238.28,238.27,0.72]
[1757680940177,14.70374497,238.28,238.27,0.72]
[1757680940486,14.70374497,238.28,238.26,32.92739431]
[1757680940684,13.65559401,238.28,238.26,32.92739431]
[1757680940866,13.65559401,238.28,238.26,1.18739431]
[1757680941062,13.65559401,238.28,238.27,32.46]
[1757680941259,14.70374497,238.28,238.27,32.46]
[1757680941679,13.59559401,238.27,238.26,0.46739431]
[1757680941886,13.59559401,238.27,238.26,32.92739431]
[1757680942083,13.59559401,238.27,238.26,53.51739431]
[1757680942289,0.06,238.28,238.26,53.51739431]
[1757680942782,0.06,238.28,238.26,54.23739431]
[1757680942967,0.06,238.28,238.26,53.51739431]
[1757680943671,0.06,238.28,238.26,54.23739431]
[1757680945671,0.06,238.28,238.26,21.77739431]
[1757680945877,0.06,238.28,238.27,32.46]
[1757680946076,14.70374511,238.28,238.27,32.46]
[1757680947565,13.59559401,238.27,238.26,21.05739431]
[1757680947763,14.64374511,238.27,238.26,53.51739431]
[1757680948292,0.06,238.28,238.26,32.92739431]
[1757680949689,1.04819373,238.27,238.26,32.92739431]
[1757680950086,1.04819373,238.27,238.26,33.59739431]
[1757680953089,1.04819373,238.27,238.26,1.13739431]
[1757680953408,14.78594931,238.27,238.26,32.92739431]
[1757680953595,13.73775558,238.27,238.26,32.92739431]
[1757680954697,13.73775558,238.27,238.26,0.46739431]
[1757680954886,15.9431832,238.27,238.26,0.46739431]
[1757680956104,16.99153831,238.27,238.26,0.46739431]
[1757680960575,23.99092412,238.27,238.26,0.46739431]
[1757680962100,23.99092412,238.27,238.26,0.33015836]
[1757680962510,23.9909533,238.27,238.26,0.33015836]
[1757680963522,59.59559401,238.24,238.23,0.03]
[1757680963818,69.30086187,238.24,238.23,0.03]
[1757680964017,70.98015824,238.24,238.23,0.03]
[1757680964824,74.1292219,238.24,238.23,0.03]
[1757680965318,13.73775558,238.23,238.21,0.03]
[1757680965490,19.79439243,238.22,238.21,0.03]
[1757680965693,18.74564955,238.22,238.21,0.03]
[1757680966012,19.79438528,238.22,238.21,0.03]
[1757680966403,23.46612489,238.22,238.21,0.03]
[1757680966713,22.9434499,238.22,238.21,0.03]
[1757680966919,23.99217122,238.22,238.21,0.03]
[1757680967221,21.18970487,238.22,238.21,0.03]
[1757680967404,23.99217122,238.22,238.21,0.03]
[1757680967595,21.18970487,238.22,238.21,0.03]
[1757680967792,23.99217122,238.22,238.21,0.03]
[1757680968222,21.18970487,238.22,238.21,0.03]
[1757680969824,14.64431533,238.22,238.21,0.7]
[1757680970014,14.7864769,238.22,238.21,0.7]
[1757680970522,14.64431533,238.22,238.21,0.7]
[1757680970819,14.7864769,238.22,238.21,0.7]
[1757680971394,14.64431533,238.22,238.21,0.7]
[1757680971733,14.7864769,238.22,238.21,0.7]
[1757680977032,14.7864769,238.22,238.21,0.03]
[1757680977329,14.7864769,238.22,238.21,0.72]
[1757680977711,14.7864769,238.22,238.21,0.03]
[1757680978629,14.7864769,238.22,238.21,0.72]
[1757680981132,14.7864769,238.22,238.21,0.03]
[1757680981502,18.98427725,238.22,238.21,0.03]
[1757680981904,22.43510894,238.22,238.21,0.03]
[1757680982210,24.18885397,238.22,238.21,0.03]
[1757680983128,13.73775558,238.22,238.21,0.03]
[1757680984009,13.73775558,238.22,238.21,0.72]
[1757680989351,21.38638762,238.22,238.21,0.03]
[1757680989839,17.93555593,238.22,238.21,0.03]
[1757680990037,21.38638762,238.22,238.21,0.03]
[1757680993341,21.38638762,238.22,238.21,0.72]
[1757680993342,13.73775558,238.22,238.21,0.72]
[1757681003225,13.59559401,238.22,238.21,0.72]
[1757681003744,13.59559401,238.22,238.21,33.16]
[1757681003923,13.59559401,238.22,238.21,0.72]
[1757681006237,16.39806036,238.22,238.21,0.72]
[1757681008853,13.59559401,238.22,238.21,0.72]
[1757681009060,16.40202996,238.22,238.21,33.16]
[1757681009246,13.59559401,238.22,238.21,33.16]
[1757681009848,13.59559401,238.22,238.21,0.72]
[1757681010058,13.59559401,238.22,238.21,33.16]
[1757681010246,16.4021634,238.22,238.21,33.16]
[1757681010752,16.4021634,238.22,238.21,0.72]
[1757681010960,16.4021634,238.22,238.21,33.16]
[1757681012561,16.4021634,238.22,238.21,0.72]
[1757681012755,16.4021634,238.22,238.21,33.16]
[1757681017466,13.59559401,238.22,238.21,33.16]
[1757681019254,13.59559401,238.22,238.21,53.75]
[1757681020859,0.06,238.23,238.21,53.75]
[1757681021047,13.65559401,238.23,238.22,0.68]
[1757681021247,16.46225667,238.23,238.22,0.68]
[1757681021447,0.06,238.23,238.22,0.68]
[1757681021663,13.65559401,238.23,238.22,0.68]
[1757681021863,16.46225667,238.23,238.22,0.68]
[1757681022065,0.06,238.23,238.22,0.68]
[1757681022273,2.86666266,238.23,238.22,0.68]
[1757681022571,0.06,238.23,238.22,0.68]
[1757681025152,0.06,238.23,238.22,21.27]
[1757681027576,0.06,238.23,238.22,53.69]
[1757681031855,0.06,238.26,238.23,20.53]
[1757681032049,0.06,238.26,238.24,32.42]
[1757681032268,0.06,238.26,238.24,33.1]
[1757681032471,0.06,238.26,238.25,0.68]
[1757681034875,0.06,238.26,238.25,21.11]
[1757681035370,0.06,238.27,238.25,152.51]
[1757681035555,0.06,238.29,238.28,26.0]
[1757681035755,0.06,238.29,238.28,78.83]